[Event "POL-chT 2nd League-3 2020"]
[Site "Poronin"]
[Date "2020.09.11"]
[Round "7.19"]
[White "Miroslaw, Michal"]
[Black "Niekras, Dawid"]
[Result "1/2-1/2"]
[ECO "B53"]
[WhiteElo "2287"]
[BlackElo "2329"]
[Annotator "RC"]
[PlyCount "20"]
[EventDate "2020.09.05"]
[EventType "team-tourn"]
[EventCountry "POL"]
[SourceTitle "playchess.com"]
[Source "ChessBase"]
[SourceQuality "1"]
[WhiteTeam "LKSz Lublin"]
[BlackTeam "ASSz Lipno Steszew"]
[WhiteTeamCountry "POL"]
[TimeControl "40/5400+30:900+30"]

1. e4 {[%emt 0:00:00]} c5 {[%emt 0:00:00]} 2. Nf3 {[%emt 0:00:00]} d6 {[%emt 0:00:00]} 3. d4 {[%emt 0:00:00]} cxd4 {[%emt 0:00:00]} 4. Qxd4 {[%emt 0:00:16]} Nc6 {[%emt 0:00:00]} 5. Bb5 {[%emt 0:00:27]} Bd7 {[%emt 0:00:05]} 6. Bxc6 {[%emt 0:02:20]} Bxc6 {[%emt 0:00:07]} 7. c4 {[%emt 0:00:28]} f5 {[%emt 0:00:12]} 8. Nc3 {[%emt 0:05:28]} e5 {[%emt 0:00:14]} 9. Qe3 {[%emt 0:01:55]} fxe4 {[%emt 0:03:05]} 10. Ng5 {[%emt 0:10:26]} Nf6 {[%emt 0:00:44]} 1/2-1/2

[Event "POL-chT 2nd League-3 2020"]
[Site "Poronin"]
[Date "2020.09.12"]
[Round "8.3"]
[White "Bardeli, Lukasz"]
[Black "Gola, Karol"]
[Result "1/2-1/2"]
[ECO "A12"]
[WhiteElo "2189"]
[BlackElo "2192"]
[Annotator "ChessBase"]
[PlyCount "73"]
[EventDate "2020.09.05"]
[EventType "team-tourn"]
[EventCountry "POL"]
[SourceTitle "playchess.com"]
[Source "ChessBase"]
[SourceQuality "1"]
[WhiteTeam "LKS Chrobry Gniezno"]
[BlackTeam "KS AZS Politechniki Sl. Gliwice"]
[WhiteTeamCountry "POL"]
[TimeControl "40/5400+30:900+30"]

1. Nf3 {[%emt 0:00:00]} d5 {[%emt 0:00:00]} 2. c4 {[%emt 0:00:00]} c6 {[%emt 0:00:00]} 3. b3 {[%emt 0:00:00]} Bg4 {[%emt 0:00:10]} 4. Bb2 {[%emt 0:01:18]} Nd7 {[%emt 0:00:19]} 5. g3 {[%emt 0:03:22]} Ngf6 {[%emt 0:01:15]} 6. Bg2 {[%emt 0:00:08]} e6 {[%emt 0:00:16]} 7. O-O {[%emt 0:00:08]} Bd6 {[%emt 0:00:12]} 8. d4 {[%emt 0:01:13]} O-O {[%emt 0:08:12]} 9. Nbd2 {[%emt 0:04:13]} Qe7 {[%emt 0:13:03]} 10. a3 {[%emt 0:04:12]} Rfe8 {[%emt 0:11:06]} 11. Ne5 {[%emt 0:03:56]} Bf5 {[%emt 0:01:29]} 12. Ndf3 {[%emt 0:05:20]} h6 {[%emt 0:10:30]} 13. Nxd7 {[%emt 0:12:44]} Nxd7 {[%emt 0:01:01]} 14. Nd2 {[%emt 0:02:05]} Nf6 {[%emt 0:04:07]} 15. Re1 {[%emt 0:00:23]} Rad8 {[%emt 0:12:38]} 16. e4 {[%emt 0:04:09]} dxe4 {[%emt 0:03:48]} 17. Nxe4 {[%emt 0:00:07]} Nxe4 {[%emt 0:09:13]} 18. Bxe4 {[%emt 0:00:02]} Bxe4 {[%emt 0:00:09]} 19. Rxe4 {[%emt 0:00:05]} f5 {[%emt 0:01:29]} 20. Re3 {[%emt 0:18:15]} c5 {[%emt 0:05:05]} 21. d5 {[%emt 0:02:26]} e5 {[%emt 0:02:24]} 22. Qh5 {[%emt 0:00:10]} Qf7 {[%emt 0:06:32]} 23. Qxf7+ {[%emt 0:00:06]} Kxf7 {[%emt 0:00:03]} 24. Rae1 {[%emt 0:00:14]} e4 {[%emt 0:03:13]} 25. f3 {[%emt 0:00:08]} Be5 {[%emt 0:00:31]} 26. Bxe5 {[%emt 0:00:19]} Rxe5 {[%emt 0:00:04]} 27. fxe4 {[%emt 0:00:43]} Rde8 {[%emt 0:00:05]} 28. Kf2 {[%emt 0:04:16]} fxe4 {[%emt 0:00:35]} 29. Ke2 {[%emt 0:00:15]} Ke7 {[%emt 0:00:23]} 30. Rf1 {[%emt 0:00:34]} a6 {[%emt 0:02:28]} 31. Rf4 {[%emt 0:07:03]} Kd6 {[%emt 0:00:05]} 32. g4 {[%emt 0:00:52]} h5 {[%emt 0:03:15]} 33. Rh3 {[%emt 0:08:55]} b5 {[%emt 0:00:08]} 34. gxh5 {[%emt 0:12:59]} bxc4 {[%emt 0:00:04]} 35. bxc4 {[%emt 0:00:07]} Rb8 {[%emt 0:00:07]} 36. h6 {[%emt 0:00:29]} Rb2+ {[%emt 0:00:17]} 37. Ke1 {[%emt 0:00:35]} 1/2-1/2

[Event "POL-chT 2nd League-3 2020"]
[Site "Poronin"]
[Date "2020.09.12"]
[Round "8.4"]
[White "Flasinski, Michal"]
[Black "Zurawski, Kamil"]
[Result "1-0"]
[ECO "D70"]
[WhiteElo "2205"]
[BlackElo "1695"]
[Annotator "ChessBase"]
[PlyCount "67"]
[EventDate "2020.09.05"]
[EventType "team-tourn"]
[EventCountry "POL"]
[SourceTitle "playchess.com"]
[Source "ChessBase"]
[SourceQuality "1"]
[WhiteTeam "KS AZS Politechniki Sl. Gliwice"]
[BlackTeam "LKS Chrobry Gniezno"]
[BlackTeamCountry "POL"]
[TimeControl "40/5400+30:900+30"]

1. d4 {[%emt 0:00:00]} Nf6 {[%emt 0:00:00]} 2. c4 {[%emt 0:00:00]} g6 {[%emt 0:00:16]} 3. Nf3 {[%emt 0:00:00]} Bg7 {[%emt 0:00:26]} 4. g3 {[%emt 0:00:01]} d5 {[%emt 0:03:42]} 5. cxd5 {[%emt 0:00:09]} Nxd5 {[%emt 0:00:07]} 6. Bg2 {[%emt 0:00:04]} Nb6 {[%emt 0:00:39]} 7. Nc3 {[%emt 0:00:34]} Nc6 {[%emt 0:00:39]} 8. e3 {[%emt 0:00:09]} O-O {[%emt 0:00:30]} 9. O-O {[%emt 0:00:05]} Re8 {[%emt 0:00:37]} 10. h3 {[%emt 0:04:24]} a5 {[%emt 0:01:28]} 11. Qe2 {[%emt 0:13:10]} Be6 {[%emt 0:11:49]} 12. Rd1 {[%emt 0:15:55]} Bc4 {[%emt 0:05:28]} 13. Qc2 {[%emt 0:08:30]} e5 {[%emt 0:25:16]} 14. Nxe5 {[%emt 0:03:35]} Nxe5 {[%emt 0:00:24]} 15. dxe5 {[%emt 0:00:06]} Qc8 {[%emt 0:00:16]} 16. f4 {[%emt 0:06:24]} Be6 {[%emt 0:00:56]} 17. Kh2 {[%emt 0:01:45]} c6 {[%emt 0:02:13]} 18. Ne4 {[%emt 0:03:30]} Bf5 {[%emt 0:01:19]} 19. Qb3 {[%emt 0:02:05]} Bxe4 {[%emt 0:01:59]} 20. Bxe4 {[%emt 0:00:03]} Qc7 {[%emt 0:01:23]} 21. Bd2 {[%emt 0:00:54]} Nd7 {[%emt 0:01:48]} 22. Bg2 {[%emt 0:05:45]} Nc5 {[%emt 0:01:49]} 23. Qc4 {[%emt 0:00:11]} Qb6 {[%emt 0:02:03]} 24. Bc3 {[%emt 0:00:38]} Ne6 {[%emt 0:01:01]} 25. Rd3 {[%emt 0:01:38]} Bf8 {[%emt 0:02:23]} 26. Rad1 {[%emt 0:01:08]} h6 {[%emt 0:04:32]} 27. h4 {[%emt 0:01:43]} Be7 {[%emt 0:03:23]} 28. Bh3 {[%emt 0:04:29]} Nc7 {[%emt 0:01:12]} 29. e6 {[%emt 0:01:29]} f6 {[%emt 0:00:44]} 30. Qe4 {[%emt 0:00:23]} Kh7 {[%emt 0:01:05]} 31. h5 {[%emt 0:00:10]} Rg8 {[%emt 0:01:38]} 32. Rd7 {[%emt 0:00:18]} Rae8 {[%emt 0:00:20]} 33. hxg6+ {[%emt 0:00:43]} Kg7 {[%emt 0:00:10]} 34. Bxf6+ {[%emt 0:00:14]} 1-0

[Event "POL-chT 2nd League-3 2020"]
[Site "Poronin"]
[Date "2020.09.12"]
[Round "8.5"]
[White "Wojdak, Jan"]
[Black "Szolc, Grzegorz"]
[Result "1-0"]
[ECO "B06"]
[WhiteElo "1814"]
[BlackElo "2036"]
[Annotator "ChessBase"]
[PlyCount "129"]
[EventDate "2020.09.05"]
[EventType "team-tourn"]
[EventCountry "POL"]
[SourceTitle "playchess.com"]
[Source "ChessBase"]
[SourceQuality "1"]
[WhiteTeam "LKS Chrobry Gniezno"]
[BlackTeam "KS AZS Politechniki Sl. Gliwice"]
[WhiteTeamCountry "POL"]
[TimeControl "40/5400+30:900+30"]

1. e4 {[%emt 0:00:00]} g6 {[%emt 0:00:00]} 2. d4 {[%emt 0:00:00]} Bg7 {[%emt 0:00:00]} 3. c4 {[%emt 0:00:00]} Nc6 {[%emt 0:00:52]} 4. d5 {[%emt 0:01:40]} Nd4 {[%emt 0:00:13]} 5. Be3 {[%emt 0:00:34]} e5 {[%emt 0:02:19]} 6. Nc3 {[%emt 0:03:03]} c5 {[%emt 0:03:49]} 7. Bd3 {[%emt 0:24:48]} d6 {[%emt 0:05:55]} 8. Nge2 {[%emt 0:00:31]} Ne7 {[%emt 0:03:16]} 9. O-O {[%emt 0:03:46]} O-O {[%emt 0:01:59]} 10. f4 {[%emt 0:02:53]} Bg4 {[%emt 0:21:03]} 11. Qe1 {[%emt 0:04:23]} Bxe2 {[%emt 0:10:30]} 12. Nxe2 {[%emt 0:07:16]} f5 {[%emt 0:09:16]} 13. Ng3 {[%emt 0:05:13]} Qd7 {[%emt 0:01:57]} 14. b4 {[%emt 0:06:19]} b6 {[%emt 0:02:24]} 15. Rc1 {[%emt 0:04:45]} Rae8 16. Bxd4 {[%emt 0:04:08]} cxd4 {[%emt 0:02:10]} 17. fxe5 dxe5 {[%emt 0:03:07]} 18. c5 {[%emt 0:01:57]} Bh6 {[%emt 0:14:21]} 19. d6 {[%emt 0:02:33]} Bxc1 {[%emt 0:08:57]} 20. Qxc1 {[%emt 0:00:16]} f4 {[%emt 0:04:38]} 21. dxe7 {[%emt 0:00:34]} Qxe7 {[%emt 0:00:04]} 22. Ne2 {[%emt 0:02:16]} Rc8 {[%emt 0:00:16]} 23. c6 {[%emt 0:02:52]} Qxb4 {[%emt 0:01:34]} 24. Qc4+ {[%emt 0:03:45]} Qxc4 {[%emt 0:00:02]} 25. Bxc4+ {[%emt 0:00:06]} Kg7 {[%emt 0:00:03]} 26. Bd5 {[%emt 0:00:04]} g5 {[%emt 0:02:01]} 27. Nc1 {[%emt 0:01:34]} Kf6 {[%emt 0:01:01]} 28. Nd3 {[%emt 0:00:59]} h5 {[%emt 0:00:50]} 29. g3 {[%emt 0:03:06]} h4 {[%emt 0:01:07]} 30. g4 {[%emt 0:02:55]} Rh8 {[%emt 0:00:10]} 31. h3 {[%emt 0:00:07]} Rh7 {[%emt 0:00:30]} 32. Rc1 {[%emt 0:05:11]} Rhc7 {[%emt 0:00:58]} 33. Kf2 {[%emt 0:01:55]} a6 {[%emt 0:00:34]} 34. Nb4 {[%emt 0:01:23]} a5 {[%emt 0:00:28]} 35. Nd3 {[%emt 0:00:21]} Rb8 {[%emt 0:00:27]} 36. Rb1 {[%emt 0:02:34]} b5 {[%emt 0:00:34]} 37. Nc5 {[%emt 0:00:28]} Rb6 {[%emt 0:00:31]} 38. Rc1 {[%emt 0:01:11]} Ke7 {[%emt 0:00:31]} 39. Ne6 {[%emt 0:01:12]} Rbxc6 {[%emt 0:00:26]} 40. Rxc6 {[%emt 0:00:00]} Rxc6 {[%emt 0:00:00]} 41. Bxc6 {[%emt 0:00:24]} Kxe6 {[%emt 0:00:14]} 42. Bxb5 {[%emt 0:00:04]} Kd6 {[%emt 0:00:09]} 43. a3 {[%emt 0:03:09]} d3 {[%emt 0:11:28]} 44. Bxd3 {[%emt 0:01:28]} Kc5 {[%emt 0:01:18]} 45. Ke2 {[%emt 0:00:21]} Kd4 {[%emt 0:00:38]} 46. Kd2 {[%emt 0:00:43]} f3 {[%emt 0:00:36]} 47. Bc2 {[%emt 0:04:21]} f2 {[%emt 0:00:46]} 48. Ke2 {[%emt 0:04:56]} Kc3 {[%emt 0:01:14]} 49. Bd1 {[%emt 0:00:47]} Kd4 {[%emt 0:01:13]} 50. Kxf2 {[%emt 0:03:57]} Kxe4 {[%emt 0:01:27]} 51. Bc2+ {[%emt 0:00:16]} Kf4 {[%emt 0:01:01]} 52. Bd3 {[%emt 0:02:06]} e4 {[%emt 0:00:15]} 53. Bf1 {[%emt 0:00:18]} e3+ {[%emt 0:00:51]} 54. Ke2 {[%emt 0:00:01]} Ke4 {[%emt 0:00:20]} 55. Bg2+ {[%emt 0:01:15]} Kf4 {[%emt 0:00:01]} 56. Bf3 {[%emt 0:01:19]} Kg3 {[%emt 0:00:28]} 57. Kxe3 {[%emt 0:00:05]} Kxh3 {[%emt 0:00:27]} 58. Kf2 {[%emt 0:00:03]} Kh2 {[%emt 0:01:56]} 59. Bg2 {[%emt 0:00:06]} a4 {[%emt 0:00:32]} 60. Bc6 {[%emt 0:00:46]} Kh3 {[%emt 0:00:31]} 61. Bd7 {[%emt 0:00:07]} Kh2 {[%emt 0:00:09]} 62. Bxa4 {[%emt 0:00:24]} h3 {[%emt 0:00:06]} 63. Bb5 {[%emt 0:00:14]} Kh1 {[%emt 0:00:39]} 64. Bf1 {[%emt 0:00:11]} Kh2 {[%emt 0:00:15]} 65. a4 {[%emt 0:00:10]} 1-0

[Event "POL-chT 2nd League-3 2020"]
[Site "Poronin"]
[Date "2020.09.12"]
[Round "8.6"]
[White "Mazur, Anna"]
[Black "Szelag, Zuzanna"]
[Result "0-1"]
[ECO "B90"]
[WhiteElo "1731"]
[BlackElo "1841"]
[Annotator "NA"]
[PlyCount "62"]
[EventDate "2020.09.05"]
[EventType "team-tourn"]
[EventCountry "POL"]
[SourceTitle "playchess.com"]
[Source "ChessBase"]
[SourceQuality "1"]
[WhiteTeam "KS AZS Politechniki Sl. Gliwice"]
[BlackTeam "LKS Chrobry Gniezno"]
[BlackTeamCountry "POL"]
[TimeControl "40/5400+30:900+30"]

1. e4 {[%emt 0:00:00]} c5 {[%emt 0:00:00]} 2. Nf3 {[%emt 0:00:00]} d6 {[%emt 0:00:00]} 3. d4 {[%emt 0:00:00]} cxd4 {[%emt 0:00:00]} 4. Nxd4 {[%emt 0:00:00]} Nf6 {[%emt 0:00:00]} 5. Nc3 {[%emt 0:00:00]} a6 {[%emt 0:00:00]} 6. h3 {[%emt 0:00:10]} e6 {[%emt 0:00:15]} 7. g4 {[%emt 0:00:59]} Be7 {[%emt 0:00:04]} 8. Bg2 {[%emt 0:00:06]} Nfd7 {[%emt 0:00:13]} 9. O-O {[%emt 0:00:47]} Nc6 {[%emt 0:00:41]} 10. Nde2 {[%emt 0:00:29]} b5 {[%emt 0:03:46]} 11. a3 {[%emt 0:06:14]} Bb7 {[%emt 0:01:37]} 12. Ng3 {[%emt 0:00:31]} Rc8 {[%emt 0:04:58]} 13. f4 {[%emt 0:17:07]} O-O {[%emt 0:07:42]} 14. g5 {[%emt 0:08:31]} Na5 {[%emt 0:12:07]} 15. Kh1 {[%emt 0:09:22]} Nc4 {[%emt 0:07:20]} 16. h4 {[%emt 0:05:16]} f6 {[%emt 0:04:54]} 17. Qg4 {[%emt 0:05:19]} e5 {[%emt 0:07:52]} 18. f5 {[%emt 0:12:05]} Re8 {[%emt 0:06:23]} 19. Nh5 {[%emt 0:02:04]} Bf8 {[%emt 0:00:59]} 20. g6 {[%emt 0:06:20]} Kh8 {[%emt 0:08:02]} 21. Nxg7 {[%emt 0:05:48]} Bxg7 {[%emt 0:01:58]} 22. Rf3 {[%emt 0:06:44]} Qe7 {[%emt 0:02:35]} 23. gxh7 {[%emt 0:05:43]} Qf8 {[%emt 0:05:47]} 24. Qg6 {[%emt 0:02:59]} d5 {[%emt 0:02:11]} 25. Rg3 {[%emt 0:01:19]} d4 {[%emt 0:01:30]} 26. h5 {[%emt 0:02:23]} dxc3 {[%emt 0:01:43]} 27. h6 {[%emt 0:01:03]} Re7 {[%emt 0:00:07]} 28. b3 {[%emt 0:01:22]} Nd2 {[%emt 0:00:33]} 29. hxg7+ {[%emt 0:00:41]} Rxg7 {[%emt 0:00:26]} 30. Qxg7+ {[%emt 0:00:23]} Qxg7 {[%emt 0:00:02]} 31. Rxg7 {[%emt 0:00:13]} Kxg7 {[%emt 0:00:03]} 0-1

[Event "POL-chT 2nd League-3 2020"]
[Site "Poronin"]
[Date "2020.09.12"]
[Round "8.11"]
[White "Rykala, Monika"]
[Black "Guzik, Jolanta"]
[Result "1/2-1/2"]
[ECO "D45"]
[WhiteElo "1877"]
[BlackElo "2003"]
[Annotator "NA"]
[PlyCount "23"]
[EventDate "2020.09.05"]
[EventType "team-tourn"]
[EventCountry "POL"]
[SourceTitle "playchess.com"]
[Source "ChessBase"]
[SourceQuality "1"]
[WhiteTeam "MTSz Minsk Mazowiecki"]
[BlackTeam "MCKIS Jaworzno"]
[BlackTeamCountry "POL"]
[TimeControl "40/5400+30:900+30"]

1. d4 {[%emt 0:00:00]} d5 {[%emt 0:00:00]} 2. c4 {[%emt 0:00:00]} e6 {[%emt 0:00:00]} 3. Nc3 {[%emt 0:00:00]} c6 {[%emt 0:00:09]} 4. e3 {[%emt 0:00:00]} Nf6 {[%emt 0:00:35]} 5. Nf3 {[%emt 0:00:00]} Nbd7 {[%emt 0:00:08]} 6. cxd5 {[%emt 0:00:14]} exd5 {[%emt 0:00:06]} 7. Bd3 {[%emt 0:00:07]} Bd6 {[%emt 0:00:26]} 8. O-O {[%emt 0:00:13]} O-O {[%emt 0:00:34]} 9. Qc2 {[%emt 0:00:10]} h6 {[%emt 0:00:38]} 10. b3 {[%emt 0:00:24]} Re8 {[%emt 0:00:27]} 11. Bb2 {[%emt 0:00:21]} Qe7 {[%emt 0:00:11]} 12. Na4 {[%emt 0:01:34]} 1/2-1/2

[Event "POL-chT 2nd League-3 2020"]
[Site "Poronin"]
[Date "2020.09.12"]
[Round "8.17"]
[White "Maka, Marcin"]
[Black "Kurpiewski, Slawomir"]
[Result "1/2-1/2"]
[ECO "C77"]
[WhiteElo "2124"]
[BlackElo "1943"]
[Annotator "ChessBase"]
[PlyCount "26"]
[EventDate "2020.09.05"]
[EventType "team-tourn"]
[EventCountry "POL"]
[SourceTitle "playchess.com"]
[Source "ChessBase"]
[SourceQuality "1"]
[WhiteTeam "LKSz Lublin"]
[BlackTeam "KSz Skoczek Siedlce"]
[WhiteTeamCountry "POL"]
[BlackTeamCountry "POL"]
[TimeControl "40/5400+30:900+30"]

1. e4 {[%emt 0:00:00]} e5 {[%emt 0:00:00]} 2. Nf3 {[%emt 0:00:00]} Nc6 {[%emt 0:00:00]} 3. Bb5 {[%emt 0:00:00]} a6 {[%emt 0:00:00]} 4. Ba4 {[%emt 0:00:00]} Nf6 {[%emt 0:00:07]} 5. d3 {[%emt 0:00:00]} d6 {[%emt 0:00:19]} 6. c3 {[%emt 0:00:00]} g6 {[%emt 0:00:46]} 7. Nbd2 {[%emt 0:00:00]} Bg7 {[%emt 0:00:12]} 8. Nf1 {[%emt 0:00:03]} O-O {[%emt 0:00:14]} 9. Ng3 {[%emt 0:00:08]} b5 {[%emt 0:08:39]} 10. Bc2 {[%emt 0:02:07]} d5 {[%emt 0:00:53]} 11. a4 {[%emt 0:03:09]} dxe4 {[%emt 0:01:55]} 12. dxe4 {[%emt 0:00:28]} Qxd1+ {[%emt 0:00:13]} 13. Bxd1 {[%emt 0:00:08]} Bb7 {[%emt 0:00:35]} 1/2-1/2

[Event "POL-chT 2nd League-3 2020"]
[Site "Poronin"]
[Date "2020.09.12"]
[Round "8.20"]
[White "Samborski, Henryk"]
[Black "Wieczorek, Zbigniew"]
[Result "1/2-1/2"]
[ECO "B06"]
[WhiteElo "2069"]
[BlackElo "2208"]
[Annotator "ChessBase"]
[PlyCount "62"]
[EventDate "2020.09.05"]
[EventType "team-tourn"]
[EventCountry "POL"]
[SourceTitle "playchess.com"]
[Source "ChessBase"]
[SourceQuality "1"]
[WhiteTeam "UKS Ognisko Rydultowy"]
[BlackTeam "KS SILESIA II Raciborz"]
[WhiteTeamCountry "POL"]
[BlackTeamCountry "POL"]
[TimeControl "40/5400+30:900+30"]

1. e4 {[%emt 0:00:00]} g6 {[%emt 0:00:00]} 2. d4 {[%emt 0:00:00]} Bg7 {[%emt 0:00:00]} 3. Nf3 {[%emt 0:00:04]} c6 {[%emt 0:00:56]} 4. Bd3 {[%emt 0:01:42]} d5 {[%emt 0:00:21]} 5. Nbd2 {[%emt 0:08:18]} Bg4 {[%emt 0:10:24]} 6. c3 {[%emt 0:00:42]} dxe4 {[%emt 0:07:36]} 7. Nxe4 {[%emt 0:00:31]} Nf6 {[%emt 0:02:04]} 8. h3 {[%emt 0:00:43]} Bxf3 {[%emt 0:01:28]} 9. Nxf6+ {[%emt 0:01:09]} Bxf6 {[%emt 0:01:56]} 10. Qxf3 {[%emt 0:00:07]} Qa5 {[%emt 0:05:26]} 11. O-O {[%emt 0:13:28]} O-O {[%emt 0:00:46]} 12. Re1 {[%emt 0:04:12]} Nd7 {[%emt 0:01:47]} 13. Bh6 {[%emt 0:00:52]} Rfe8 {[%emt 0:00:51]} 14. Bc4 {[%emt 0:00:11]} Qf5 {[%emt 0:04:28]} 15. Qxf5 {[%emt 0:01:25]} gxf5 {[%emt 0:00:04]} 16. Re3 {[%emt 0:00:12]} e6 {[%emt 0:00:20]} 17. g4 {[%emt 0:05:44]} fxg4 {[%emt 0:08:26]} 18. hxg4 {[%emt 0:00:32]} Bg7 {[%emt 0:04:42]} 19. Bg5 {[%emt 0:05:32]} h6 {[%emt 0:02:31]} 20. Bh4 {[%emt 0:04:44]} Nb6 {[%emt 0:03:41]} 21. Bb3 {[%emt 0:00:20]} a5 {[%emt 0:01:17]} 22. a3 {[%emt 0:00:22]} a4 {[%emt 0:01:23]} 23. Ba2 {[%emt 0:00:30]} Nd5 {[%emt 0:04:35]} 24. Re4 {[%emt 0:00:51]} f5 {[%emt 0:04:03]} 25. gxf5 {[%emt 0:00:21]} exf5 {[%emt 0:00:34]} 26. Rf4 {[%emt 0:03:41]} Re4 {[%emt 0:03:10]} 27. Rxe4 {[%emt 0:06:04]} fxe4 {[%emt 0:00:04]} 28. Re1 {[%emt 0:00:59]} Re8 {[%emt 0:00:04]} 29. Bb1 {[%emt 0:01:06]} e3 {[%emt 0:00:45]} 30. fxe3 {[%emt 0:09:10]} Rxe3 {[%emt 0:00:37]} 31. Kf2 {[%emt 0:01:04]} Rxe1 {[%emt 0:02:26]} 1/2-1/2

[Event "POL-chT 2nd League-3 2020"]
[Site "Poronin"]
[Date "2020.09.12"]
[Round "8.21"]
[White "Jaworski, Miroslaw"]
[Black "Lamza, Zenon"]
[Result "1/2-1/2"]
[ECO "E76"]
[WhiteElo "2196"]
[BlackElo "2220"]
[Annotator "ChessBase"]
[PlyCount "39"]
[EventDate "2020.09.05"]
[EventType "team-tourn"]
[EventCountry "POL"]
[SourceTitle "playchess.com"]
[Source "ChessBase"]
[SourceQuality "1"]
[WhiteTeam "KS SILESIA II Raciborz"]
[BlackTeam "UKS Ognisko Rydultowy"]
[WhiteTeamCountry "POL"]
[BlackTeamCountry "POL"]
[TimeControl "40/5400+30:900+30"]

1. d4 {[%emt 0:00:00]} Nf6 {[%emt 0:00:00]} 2. c4 {[%emt 0:00:00]} g6 {[%emt 0:00:00]} 3. Nc3 {[%emt 0:00:00]} Bg7 {[%emt 0:00:08]} 4. e4 {[%emt 0:00:10]} d6 {[%emt 0:00:29]} 5. f4 {[%emt 0:00:16]} O-O {[%emt 0:01:26]} 6. Nf3 {[%emt 0:00:06]} c5 {[%emt 0:00:20]} 7. dxc5 {[%emt 0:00:24]} Qa5 {[%emt 0:01:29]} 8. Bd3 {[%emt 0:00:14]} Qxc5 {[%emt 0:00:09]} 9. Qe2 {[%emt 0:00:09]} Nc6 {[%emt 0:08:09]} 10. Be3 {[%emt 0:00:11]} Qh5 {[%emt 0:01:12]} 11. O-O {[%emt 0:00:36]} Ng4 {[%emt 0:00:50]} 12. Bc1 {[%emt 0:17:44]} Bd4+ {[%emt 0:01:48]} 13. Kh1 {[%emt 0:00:24]} Nb4 {[%emt 0:11:00]} 14. Nd1 {[%emt 0:05:09]} Nxd3 {[%emt 0:15:56]} 15. Qxd3 {[%emt 0:00:16]} Bb6 {[%emt 0:00:06]} 16. Ne3 {[%emt 0:11:03]} Be6 {[%emt 0:08:41]} 17. Nxg4 {[%emt 0:03:27]} Qxg4 {[%emt 0:02:54]} 18. Ng5 {[%emt 0:04:55]} Rac8 {[%emt 0:01:16]} 19. b3 {[%emt 0:03:14]} Bd7 {[%emt 0:04:34]} 20. h3 {[%emt 0:25:30]} 1/2-1/2

[Event "POL-chT 2nd League-3 2020"]
[Site "Poronin"]
[Date "2020.09.12"]
[Round "8.22"]
[White "Radecki, Adam"]
[Black "Helis, Tadeusz"]
[Result "1/2-1/2"]
[ECO "B30"]
[WhiteElo "2002"]
[BlackElo "2157"]
[Annotator "ChessBase"]
[PlyCount "136"]
[EventDate "2020.09.05"]
[EventType "team-tourn"]
[EventCountry "POL"]
[SourceTitle "playchess.com"]
[Source "ChessBase"]
[SourceQuality "1"]
[WhiteTeam "UKS Ognisko Rydultowy"]
[BlackTeam "KS SILESIA II Raciborz"]
[WhiteTeamCountry "POL"]
[BlackTeamCountry "POL"]
[TimeControl "40/5400+30:900+30"]

1. e4 {[%emt 0:00:00]} c5 {[%emt 0:00:00]} 2. Nf3 {[%emt 0:00:00]} Nc6 {[%emt 0:00:00]} 3. d3 {[%emt 0:00:34]} g6 {[%emt 0:00:32]} 4. g3 {[%emt 0:01:25]} Bg7 {[%emt 0:00:03]} 5. Bg2 {[%emt 0:00:07]} d6 {[%emt 0:00:18]} 6. O-O {[%emt 0:00:19]} Nf6 {[%emt 0:01:02]} 7. Nc3 {[%emt 0:00:50]} O-O {[%emt 0:00:09]} 8. Ne2 {[%emt 0:04:42]} d5 {[%emt 0:01:10]} 9. exd5 {[%emt 0:00:48]} Nxd5 {[%emt 0:00:04]} 10. d4 {[%emt 0:00:33]} cxd4 {[%emt 0:03:25]} 11. Nexd4 {[%emt 0:00:27]} Nxd4 {[%emt 0:02:50]} 12. Nxd4 {[%emt 0:00:12]} Nb6 {[%emt 0:07:41]} 13. c3 {[%emt 0:02:36]} Rb8 {[%emt 0:03:47]} 14. Qe2 {[%emt 0:01:46]} e5 {[%emt 0:00:48]} 15. Nb3 {[%emt 0:00:34]} Be6 {[%emt 0:00:26]} 16. Rd1 {[%emt 0:00:40]} Qc8 {[%emt 0:03:29]} 17. Be3 {[%emt 0:01:54]} Re8 {[%emt 0:05:55]} 18. Nc5 {[%emt 0:03:41]} Bc4 {[%emt 0:01:57]} 19. Qe1 {[%emt 0:00:20]} f5 {[%emt 0:00:05]} 20. Nd3 {[%emt 0:07:31]} Bf7 {[%emt 0:04:16]} 21. Bxb6 {[%emt 0:00:31]} axb6 {[%emt 0:00:03]} 22. Nb4 {[%emt 0:00:13]} e4 {[%emt 0:03:50]} 23. Bf1 {[%emt 0:00:49]} Qc5 {[%emt 0:00:53]} 24. Qe3 {[%emt 0:04:27]} Red8 {[%emt 0:05:41]} 25. Be2 {[%emt 0:04:11]} Bf8 {[%emt 0:00:57]} 26. Nc2 {[%emt 0:19:11]} Rxd1+ {[%emt 0:03:19]} 27. Bxd1 {[%emt 0:03:12]} Rd8 {[%emt 0:00:13]} 28. Nd4 {[%emt 0:01:38]} Bg7 {[%emt 0:00:33]} 29. Nb3 {[%emt 0:01:28]} Qxe3 {[%emt 0:01:30]} 30. fxe3 {[%emt 0:00:08]} Bh6 {[%emt 0:00:09]} 31. Kf2 {[%emt 0:00:10]} Rd3 {[%emt 0:00:32]} 32. Bc2 {[%emt 0:03:43]} Rxe3 {[%emt 0:00:03]} 33. Nd4 {[%emt 0:00:28]} f4 {[%emt 0:00:46]} 34. gxf4 {[%emt 0:00:09]} Bxf4 {[%emt 0:00:51]} 35. Ne2 {[%emt 0:01:09]} Bh6 {[%emt 0:00:52]} 36. Ng3 {[%emt 0:00:09]} Bd5 {[%emt 0:01:17]} 37. Rd1 {[%emt 0:01:33]} Bc6 {[%emt 0:00:03]} 38. Bb3+ {[%emt 0:13:00]} Kg7 {[%emt 0:07:40]} 39. Bd5 {[%emt 0:00:11]} Bxd5 {[%emt 0:14:51]} 40. Rxd5 {[%emt 0:00:00]} Rd3 {[%emt 0:00:00]} 41. Re5 {[%emt 0:00:59]} Rd2+ {[%emt 0:00:40]} 42. Ne2 {[%emt 0:00:03]} e3+ {[%emt 0:00:30]} 43. Kf3 {[%emt 0:00:05]} Rxb2 {[%emt 0:01:24]} 44. Re7+ {[%emt 0:00:11]} Kg8 {[%emt 0:00:28]} 45. Rxb7 {[%emt 0:00:25]} Bf8 {[%emt 0:01:51]} 46. Kxe3 {[%emt 0:01:37]} Bc5+ {[%emt 0:00:11]} 47. Kf3 {[%emt 0:00:28]} Rxa2 {[%emt 0:00:02]} 48. h3 {[%emt 0:00:49]} Rd2 {[%emt 0:00:19]} 49. Nf4 {[%emt 0:01:29]} Rd6 {[%emt 0:10:37]} 50. Ke4 {[%emt 0:01:56]} g5 {[%emt 0:02:33]} 51. Nh5 {[%emt 0:00:16]} Rh6 {[%emt 0:03:26]} 52. Ng3 {[%emt 0:00:06]} Rxh3 {[%emt 0:00:26]} 53. Nf5 {[%emt 0:00:06]} Rxc3 {[%emt 0:00:32]} 54. Rg7+ {[%emt 0:00:07]} Kf8 {[%emt 0:04:16]} 55. Rxh7 {[%emt 0:00:23]} g4 {[%emt 0:01:13]} 56. Rg7 {[%emt 0:00:20]} Rc4+ {[%emt 0:01:10]} 57. Kd5 {[%emt 0:02:02]} Rf4 {[%emt 0:01:58]} 58. Rg5 {[%emt 0:00:27]} Ba3 {[%emt 0:02:04]} 59. Nh6 {[%emt 0:01:09]} b5 {[%emt 0:01:07]} 60. Rxg4 {[%emt 0:00:45]} Rf3 {[%emt 0:01:49]} 61. Ke4 {[%emt 0:02:37]} Rf6 {[%emt 0:00:39]} 62. Rg8+ {[%emt 0:00:56]} Ke7 {[%emt 0:00:03]} 63. Nf5+ {[%emt 0:00:12]} Kd7 {[%emt 0:00:25]} 64. Nd4 {[%emt 0:00:33]} b4 {[%emt 0:00:53]} 65. Nc2 {[%emt 0:01:10]} Bc1 {[%emt 0:01:31]} 66. Rb8 {[%emt 0:00:05]} Bd2 {[%emt 0:00:25]} 67. Nxb4 {[%emt 0:00:20]} Rf4+ {[%emt 0:00:23]} 68. Ke5 {[%emt 0:00:05]} Rxb4 1/2-1/2